[Event "Early-Titled-Tuesday-Blitz-October-10-2023"]
[Site "Chess.com"]
[Date "2023.10.10"]
[Round "3"]
[White "Casper"]
[Black "Ermito2020"]
[Result "1-0"]
[WhiteElo "2444"]
[BlackElo "2590"]
[TimeControl "180+1"]
[EndTime "8:27:37 PDT"]
[Termination "Casper won by resignation"]

1. e4 {[%clk 0:02:58]} 1... e6 {[%clk 0:03:00.1]} 2. d4 {[%clk 0:02:58.2]} 2...
d5 {[%clk 0:03:00.8]} 3. exd5 {[%clk 0:02:59.1]} 3... exd5 {[%clk 0:03:00.6]} 4.
Nf3 {[%clk 0:02:59.7]} 4... Nc6 {[%clk 0:03:00]} 5. Be2 {[%clk 0:03:00.3]} 5...
Bd6 {[%clk 0:02:59.4]} 6. O-O {[%clk 0:03:00.8]} 6... Nge7 {[%clk 0:02:59.9]} 7.
Nc3 {[%clk 0:03:00.2]} 7... Bg4 {[%clk 0:02:54.9]} 8. Nb5 {[%clk 0:02:57.7]}
8... Qd7 {[%clk 0:02:51]} 9. Re1 {[%clk 0:02:52.6]} 9... O-O-O {[%clk
0:02:49.5]} 10. Nxd6+ {[%clk 0:02:45]} 10... Qxd6 {[%clk 0:02:50.4]} 11. Ne5
{[%clk 0:02:45.9]} 11... Bxe2 {[%clk 0:02:48]} 12. Qxe2 {[%clk 0:02:42.1]} 12...
Nxd4 {[%clk 0:02:35.4]} 13. Qg4+ {[%clk 0:02:30.1]} 13... Ndf5 {[%clk 0:01:56]}
14. Nxf7 {[%clk 0:02:28.4]} 14... Qd7 {[%clk 0:01:33.4]} 15. Bg5 {[%clk
0:02:00]} 15... g6 {[%clk 0:01:08.1]} 16. Nxh8 {[%clk 0:01:45.1]} 16... Rxh8
{[%clk 0:01:09]} 17. Bxe7 {[%clk 0:01:45.2]} 17... Nxe7 {[%clk 0:01:08.9]} 18.
Qd4 {[%clk 0:01:45.8]} 18... Rf8 {[%clk 0:01:03.8]} 19. Qg7 {[%clk 0:01:16.2]}
19... Re8 {[%clk 0:00:56.6]} 20. Qf7 {[%clk 0:01:15]} 20... Kd8 {[%clk
0:00:48.6]} 21. Re5 {[%clk 0:00:48.9]} 21... Nc8 {[%clk 0:00:30.6]} 22. Qf6+
{[%clk 0:00:37.8]} 22... Ne7 {[%clk 0:00:16.6]} 23. Rae1 {[%clk 0:00:38.4]}
23... c6 {[%clk 0:00:17.4]} 24. Re6 {[%clk 0:00:32.5]} 24... Qc7 {[%clk
0:00:15.5]} 25. Rxe7 {[%clk 0:00:16.5]} 25... Rxe7 {[%clk 0:00:15.1]} 26. Qf8+
{[%clk 0:00:16.5]} 1-0

[Event "Early-Titled-Tuesday-Blitz-October-10-2023"]
[Site "Chess.com"]
[Date "2023.10.10"]
[Round "3"]
[White "schack_vit"]
[Black "tdf98pantani"]
[Result "0-1"]
[WhiteElo "2453"]
[BlackElo "2631"]
[TimeControl "180+1"]
[EndTime "8:27:40 PDT"]
[Termination "tdf98pantani won by resignation"]

1. c4 {[%clk 0:02:46.6]} 1... e5 {[%clk 0:02:59.7]} 2. g3 {[%clk 0:02:45.3]}
2... Nc6 {[%clk 0:02:58]} 3. Bg2 {[%clk 0:02:45.7]} 3... g6 {[%clk 0:02:58.5]}
4. Nc3 {[%clk 0:02:45.8]} 4... Bg7 {[%clk 0:02:59.1]} 5. Nf3 {[%clk 0:02:45.9]}
5... d6 {[%clk 0:02:59.5]} 6. O-O {[%clk 0:02:45.5]} 6... f5 {[%clk 0:02:59.6]}
7. Rb1 {[%clk 0:02:40.6]} 7... Nh6 {[%clk 0:02:57.7]} 8. b4 {[%clk 0:02:39.4]}
8... a6 {[%clk 0:02:57.9]} 9. a4 {[%clk 0:02:34.3]} 9... O-O {[%clk 0:02:58.3]}
10. b5 {[%clk 0:02:32.5]} 10... axb5 {[%clk 0:02:58.5]} 11. axb5 {[%clk
0:02:33.4]} 11... Ne7 {[%clk 0:02:55.4]} 12. d3 {[%clk 0:02:29.9]} 12... Nf7
{[%clk 0:02:54]} 13. Qb3 {[%clk 0:02:28.3]} 13... Be6 {[%clk 0:02:53.5]} 14. Bb2
{[%clk 0:02:20.6]} 14... h6 {[%clk 0:02:52.8]} 15. Ra1 {[%clk 0:02:18.4]} 15...
Qd7 {[%clk 0:02:52.1]} 16. Nd5 {[%clk 0:02:12.5]} 16... g5 {[%clk 0:02:46.4]}
17. Nd2 {[%clk 0:02:08.8]} 17... Ng6 {[%clk 0:02:45.3]} 18. b6 {[%clk
0:02:00.5]} 18... Rxa1 {[%clk 0:02:36.4]} 19. Rxa1 {[%clk 0:01:57.6]} 19... c6
{[%clk 0:02:36.7]} 20. Nc7 {[%clk 0:01:56.5]} 20... Ne7 {[%clk 0:02:27.7]} 21.
Ra7 {[%clk 0:01:48.7]} 21... Rb8 {[%clk 0:02:25.9]} 22. Na6 {[%clk 0:01:08.8]}
22... Rc8 {[%clk 0:02:21.6]} 23. Nc7 {[%clk 0:01:08.4]} 23... Nd8 {[%clk
0:02:21.4]} 24. Ba3 {[%clk 0:00:59.8]} 24... Rb8 {[%clk 0:02:19.6]} 25. Nxe6
{[%clk 0:00:56.2]} 25... Nxe6 {[%clk 0:02:18.4]} 26. e3 {[%clk 0:00:55.7]} 26...
Nc8 {[%clk 0:02:15.3]} 27. Ra5 {[%clk 0:00:51.8]} 27... Bf6 {[%clk 0:02:13.8]}
28. c5 {[%clk 0:00:41]} 28... d5 {[%clk 0:02:13.5]} 29. Bc1 {[%clk 0:00:35.1]}
29... Be7 {[%clk 0:02:10.5]} 30. Qc2 {[%clk 0:00:29.8]} 30... Bxc5 {[%clk
0:02:08.6]} 31. Rxc5 {[%clk 0:00:29.3]} 31... Nxc5 {[%clk 0:02:04]} 32. Qxc5
{[%clk 0:00:30.2]} 32... Qd6 {[%clk 0:02:04.2]} 33. Qxd6 {[%clk 0:00:23]} 33...
Nxd6 {[%clk 0:02:03.7]} 34. Bb2 {[%clk 0:00:23.3]} 34... e4 {[%clk 0:02:03]} 35.
Be5 {[%clk 0:00:22.2]} 35... Rd8 {[%clk 0:02:02.9]} 36. Bxd6 {[%clk 0:00:20.3]}
36... Rxd6 {[%clk 0:02:02.8]} 37. d4 {[%clk 0:00:20.6]} 37... Rd8 {[%clk
0:01:54.3]} 38. Nb3 {[%clk 0:00:21.2]} 38... Ra8 {[%clk 0:01:53.3]} 39. Nc5
{[%clk 0:00:21.5]} 39... Ra1+ {[%clk 0:01:53.6]} 40. Bf1 {[%clk 0:00:21.8]}
40... Rb1 {[%clk 0:01:54]} 41. Nxb7 {[%clk 0:00:22.1]} 41... Rxb6 {[%clk
0:01:54.3]} 42. Nc5 {[%clk 0:00:23]} 42... Kf7 {[%clk 0:01:54.4]} 43. Kg2 {[%clk
0:00:22.8]} 43... Rb2 {[%clk 0:01:52.3]} 44. Ba6 {[%clk 0:00:22.3]} 44... Ke7
{[%clk 0:01:49]} 45. Bb7 {[%clk 0:00:21.9]} 45... Kd6 {[%clk 0:01:49.2]} 46. Bc8
{[%clk 0:00:22]} 46... f4 {[%clk 0:01:49.4]} 47. gxf4 {[%clk 0:00:18.8]} 47...
gxf4 {[%clk 0:01:50.3]} 48. exf4 {[%clk 0:00:19.4]} 48... Rd2 {[%clk 0:01:48.2]}
49. Kg3 {[%clk 0:00:18.9]} 49... Rxd4 {[%clk 0:01:47.9]} 50. Ne6 {[%clk
0:00:19.6]} 50... Rd3+ {[%clk 0:01:46.3]} 51. Kg4 {[%clk 0:00:19.6]} 51... Rf3
{[%clk 0:01:44.7]} 52. f5 {[%clk 0:00:20]} 52... Rxf2 {[%clk 0:01:44.9]} 53. Nf4
{[%clk 0:00:20.6]} 53... Ke5 {[%clk 0:01:43.6]} 54. Ng6+ {[%clk 0:00:18.1]}
54... Kf6 {[%clk 0:01:43.2]} 55. Nf4 {[%clk 0:00:18.8]} 55... Rxh2 {[%clk
0:01:37.1]} 56. Bb7 {[%clk 0:00:18]} 56... Rc2 {[%clk 0:01:34.1]} 57. Nh5+
{[%clk 0:00:15.9]} 57... Kf7 {[%clk 0:01:29.5]} 58. Bc8 {[%clk 0:00:15.1]} 58...
e3 {[%clk 0:01:27.4]} 59. Nf4 {[%clk 0:00:14]} 59... e2 {[%clk 0:01:26.1]} 60.
Be6+ {[%clk 0:00:14.9]} 60... Kf6 {[%clk 0:01:26]} 61. Nxe2 {[%clk 0:00:15.1]}
61... Rxe2 {[%clk 0:01:25.7]} 62. Kf3 {[%clk 0:00:15.1]} 62... Rxe6 {[%clk
0:01:25.6]} 63. fxe6 {[%clk 0:00:15.5]} 63... Kxe6 {[%clk 0:01:26.5]} 0-1

[Event "Early-Titled-Tuesday-Blitz-October-10-2023"]
[Site "Chess.com"]
[Date "2023.10.10"]
[Round "3"]
[White "Hrant_ChessMood"]
[Black "FERNANDEZL1983"]
[Result "1-0"]
[WhiteElo "2941"]
[BlackElo "2522"]
[TimeControl "180+1"]
[EndTime "8:27:42 PDT"]
[Termination "Hrant_ChessMood won by checkmate"]

1. d4 {[%clk 0:03:00.9]} 1... Nf6 {[%clk 0:02:56.9]} 2. c4 {[%clk 0:03:01.2]}
2... g6 {[%clk 0:02:56.6]} 3. Nc3 {[%clk 0:03:01]} 3... Bg7 {[%clk 0:02:56.8]}
4. e4 {[%clk 0:02:59.6]} 4... d6 {[%clk 0:02:56.2]} 5. Be2 {[%clk 0:02:59.7]}
5... O-O {[%clk 0:02:56.3]} 6. h4 {[%clk 0:03:00]} 6... c5 {[%clk 0:02:53.8]} 7.
d5 {[%clk 0:02:59.8]} 7... h5 {[%clk 0:02:49.2]} 8. Nf3 {[%clk 0:02:57.9]} 8...
b5 {[%clk 0:02:43.2]} 9. cxb5 {[%clk 0:02:56.9]} 9... a6 {[%clk 0:02:43.6]} 10.
a4 {[%clk 0:02:54.9]} 10... axb5 {[%clk 0:02:39.6]} 11. Bxb5 {[%clk 0:02:54.8]}
11... Ba6 {[%clk 0:02:40]} 12. Bg5 {[%clk 0:02:49.1]} 12... Qa5 {[%clk 0:02:38]}
13. O-O {[%clk 0:02:42.9]} 13... Nbd7 {[%clk 0:02:27.5]} 14. Nd2 {[%clk
0:02:39.5]} 14... Nb6 {[%clk 0:02:20.3]} 15. Qe2 {[%clk 0:02:31.3]} 15... Rfb8
{[%clk 0:02:06.4]} 16. Ra3 {[%clk 0:02:29.3]} 16... Ra7 {[%clk 0:01:47.4]} 17.
Nb3 {[%clk 0:02:22.5]} 17... Bxb5 {[%clk 0:01:38.6]} 18. axb5 {[%clk 0:02:20.5]}
18... Qxa3 {[%clk 0:01:38.2]} 19. bxa3 {[%clk 0:02:21.4]} 19... Rxa3 {[%clk
0:01:38]} 20. Qc2 {[%clk 0:02:13.5]} 20... Nfd7 {[%clk 0:01:33.6]} 21. Bc1
{[%clk 0:02:06.7]} 21... Raa8 {[%clk 0:01:28.5]} 22. Nd1 {[%clk 0:02:03.1]}
22... c4 {[%clk 0:01:27.1]} 23. Nd2 {[%clk 0:02:03.2]} 23... Rc8 {[%clk
0:01:17.5]} 24. Ne3 {[%clk 0:01:59.9]} 24... c3 {[%clk 0:01:16.3]} 25. Nf3
{[%clk 0:01:59]} 25... Ra4 {[%clk 0:01:07.8]} 26. g4 {[%clk 0:01:36.9]} 26...
hxg4 {[%clk 0:01:04.2]} 27. Nxg4 {[%clk 0:01:37.8]} 27... Rca8 {[%clk
0:00:59.9]} 28. h5 {[%clk 0:01:29.5]} 28... Ra2 {[%clk 0:00:50.2]} 29. Qd3
{[%clk 0:01:21.2]} 29... gxh5 {[%clk 0:00:50.2]} 30. Nh6+ {[%clk 0:01:19.5]}
30... Kf8 {[%clk 0:00:48.9]} 31. e5 {[%clk 0:01:14.1]} 31... dxe5 {[%clk
0:00:36.4]} 32. Nxf7 {[%clk 0:01:05]} 32... R8a4 {[%clk 0:00:30.8]} 33. Qf5
{[%clk 0:00:58]} 33... Rg4+ {[%clk 0:00:29.9]} 34. Kh1 {[%clk 0:00:58.1]} 34...
Nf6 {[%clk 0:00:28.4]} 35. N7xe5 {[%clk 0:00:56.8]} 35... Nxd5 {[%clk
0:00:19.9]} 36. Nxg4 {[%clk 0:00:53.7]} 36... hxg4 {[%clk 0:00:20.3]} 37. Qc8+
{[%clk 0:00:53]} 37... Ne8 {[%clk 0:00:17]} 38. Qxg4 {[%clk 0:00:50.6]} 38... c2
{[%clk 0:00:15.8]} 39. Ng5 {[%clk 0:00:50.1]} 39... Nec7 {[%clk 0:00:12.6]} 40.
Qh5 {[%clk 0:00:45.9]} 40... Kg8 {[%clk 0:00:11.2]} 41. Qf7+ {[%clk 0:00:45.9]}
41... Kh8 {[%clk 0:00:11.6]} 42. Kg2 {[%clk 0:00:46.5]} 42... Ra1 {[%clk
0:00:05.8]} 43. Rh1+ {[%clk 0:00:45.7]} 43... Bh6 {[%clk 0:00:06.7]} 44. Rxh6#
{[%clk 0:00:44.8]} 1-0

[Event "Early-Titled-Tuesday-Blitz-October-10-2023"]
[Site "Chess.com"]
[Date "2023.10.10"]
[Round "3"]
[White "dropstoneDP"]
[Black "hakanazeri2"]
[Result "1-0"]
[WhiteElo "3060"]
[BlackElo "2619"]
[TimeControl "180+1"]
[EndTime "8:27:43 PDT"]
[Termination "dropstoneDP won by resignation"]

1. Nf3 {[%clk 0:02:49.3]} 1... Nf6 {[%clk 0:02:59.8]} 2. c4 {[%clk 0:02:36.7]}
2... e6 {[%clk 0:02:58.2]} 3. g3 {[%clk 0:02:36]} 3... d5 {[%clk 0:02:58.3]} 4.
d4 {[%clk 0:02:36.3]} 4... Be7 {[%clk 0:02:58.2]} 5. Bg2 {[%clk 0:02:36.2]} 5...
O-O {[%clk 0:02:58.6]} 6. Nc3 {[%clk 0:02:36.9]} 6... dxc4 {[%clk 0:02:45.6]} 7.
Ne5 {[%clk 0:02:36.4]} 7... Nc6 {[%clk 0:02:41.9]} 8. Bxc6 {[%clk 0:02:35.5]}
8... bxc6 {[%clk 0:02:42]} 9. Nxc6 {[%clk 0:02:36.4]} 9... Qe8 {[%clk
0:02:41.9]} 10. Nxe7+ {[%clk 0:02:36.8]} 10... Qxe7 {[%clk 0:02:42.8]} 11. Qa4
{[%clk 0:02:37.2]} 11... Bb7 {[%clk 0:02:15.5]} 12. f3 {[%clk 0:02:36.3]} 12...
e5 {[%clk 0:02:10.5]} 13. dxe5 {[%clk 0:02:32.4]} 13... Qxe5 {[%clk 0:02:11.4]}
14. Bf4 {[%clk 0:02:32.4]} 14... Qc5 {[%clk 0:02:11.7]} 15. Qb5 {[%clk
0:02:30.7]} 15... Qxb5 {[%clk 0:02:07.9]} 16. Nxb5 {[%clk 0:02:31.6]} 16... Nd5
{[%clk 0:02:08.5]} 17. Kf2 {[%clk 0:02:15.1]} 17... Ba6 {[%clk 0:01:42.6]} 18.
Nxc7 {[%clk 0:01:48.8]} 18... Nxc7 {[%clk 0:01:40.3]} 19. Bxc7 {[%clk
0:01:49.7]} 19... Rfe8 {[%clk 0:01:32.4]} 20. Rhe1 {[%clk 0:01:42.6]} 20... Rac8
{[%clk 0:01:27.2]} 21. Ba5 {[%clk 0:01:42.4]} 21... f5 {[%clk 0:01:27.4]} 22.
Bc3 {[%clk 0:01:42.4]} 22... Rc7 {[%clk 0:01:00.7]} 23. Rad1 {[%clk 0:01:42.3]}
23... Bb7 {[%clk 0:00:55.9]} 24. h3 {[%clk 0:01:40.1]} 24... Rce7 {[%clk
0:00:55.7]} 25. Rd4 {[%clk 0:01:36.6]} 25... Ba6 {[%clk 0:00:49.1]} 26. g4
{[%clk 0:01:36.1]} 26... fxg4 {[%clk 0:00:47.4]} 27. hxg4 {[%clk 0:01:37]} 27...
Re3 {[%clk 0:00:46.6]} 28. Rd7 {[%clk 0:01:35.5]} 28... R3e7 {[%clk 0:00:45.1]}
29. Rxe7 {[%clk 0:01:35.1]} 29... Rxe7 {[%clk 0:00:46]} 30. Rd1 {[%clk
0:01:35.3]} 30... Bb5 {[%clk 0:00:39.4]} 31. Rd6 {[%clk 0:01:34.5]} 31... Rd7
{[%clk 0:00:38.7]} 32. Re6 {[%clk 0:01:32]} 32... Kf7 {[%clk 0:00:37.2]} 33. Re5
{[%clk 0:01:32.6]} 33... a6 {[%clk 0:00:37]} 34. Rf5+ {[%clk 0:01:33.2]} 34...
Ke6 {[%clk 0:00:37.1]} 35. Re5+ {[%clk 0:01:33]} 35... Kf7 {[%clk 0:00:36.9]}
36. Rh5 {[%clk 0:01:32.4]} 36... h6 {[%clk 0:00:35.8]} 37. Rc5 {[%clk
0:01:32.5]} 37... g6 {[%clk 0:00:34.5]} 38. f4 {[%clk 0:01:31.4]} 38... Rd1
{[%clk 0:00:32.5]} 39. Rc7+ {[%clk 0:01:30.7]} 39... Rd7 {[%clk 0:00:32.4]} 40.
Rc8 {[%clk 0:01:30.8]} 40... Rd1 {[%clk 0:00:32.1]} 41. Rh8 {[%clk 0:01:30.9]}
41... Rh1 {[%clk 0:00:31.9]} 42. e4 {[%clk 0:01:29.6]} 42... Bc6 {[%clk
0:00:30.6]} 43. Rh7+ {[%clk 0:01:26.6]} 43... Ke6 {[%clk 0:00:25.1]} 44. f5+
{[%clk 0:01:26.3]} 44... gxf5 {[%clk 0:00:24.3]} 45. gxf5+ {[%clk 0:01:27.2]}
45... Kd6 {[%clk 0:00:24.7]} 46. e5+ {[%clk 0:01:27.8]} 46... Kd5 {[%clk
0:00:24.7]} 47. f6 {[%clk 0:01:28.2]} 47... Rh5 {[%clk 0:00:19.7]} 48. f7 {[%clk
0:01:28.5]} 48... Rf5+ {[%clk 0:00:17.1]} 49. Ke1 {[%clk 0:01:27.2]} 49... a5
{[%clk 0:00:11.6]} 50. Bxa5 {[%clk 0:01:20.8]} 50... Ke6 {[%clk 0:00:10.3]} 51.
Rxh6+ {[%clk 0:01:17.7]} 51... Kxf7 {[%clk 0:00:09.6]} 52. Rxc6 {[%clk
0:01:17.5]} 52... Rxe5+ {[%clk 0:00:09.7]} 53. Kd2 {[%clk 0:01:17.8]} 53... Rxa5
{[%clk 0:00:10.5]} 54. a3 {[%clk 0:01:18.2]} 54... Rb5 {[%clk 0:00:08.4]} 55.
Kc3 {[%clk 0:01:18.1]} 55... Rb3+ {[%clk 0:00:08.8]} 56. Kc2 {[%clk 0:01:18.3]}
1-0

[Event "Early-Titled-Tuesday-Blitz-October-10-2023"]
[Site "Chess.com"]
[Date "2023.10.10"]
[Round "3"]
[White "atalz0"]
[Black "Alonmindlin"]
[Result "1-0"]
[WhiteElo "2496"]
[BlackElo "2698"]
[TimeControl "180+1"]
[EndTime "8:27:43 PDT"]
[Termination "atalz0 won by resignation"]

1. d4 {[%clk 0:03:00.9]} 1... Nf6 {[%clk 0:02:59.6]} 2. c4 {[%clk 0:02:54.4]}
2... e6 {[%clk 0:02:59.7]} 3. Nc3 {[%clk 0:02:54.2]} 3... Bb4 {[%clk 0:02:59.5]}
4. Qc2 {[%clk 0:02:54.7]} 4... d5 {[%clk 0:02:53.5]} 5. cxd5 {[%clk 0:02:55.6]}
5... exd5 {[%clk 0:02:53.6]} 6. Bf4 {[%clk 0:02:55.9]} 6... O-O {[%clk
0:02:50.6]} 7. e3 {[%clk 0:02:56.1]} 7... c5 {[%clk 0:02:50.1]} 8. dxc5 {[%clk
0:02:53.4]} 8... Nc6 {[%clk 0:02:49]} 9. Nf3 {[%clk 0:02:51.7]} 9... Bg4 {[%clk
0:02:47.5]} 10. Be2 {[%clk 0:02:50.8]} 10... Bxf3 {[%clk 0:02:38.1]} 11. Bxf3
{[%clk 0:02:49.1]} 11... d4 {[%clk 0:02:38.7]} 12. Rd1 {[%clk 0:02:36.7]} 12...
Qe8 {[%clk 0:02:14.2]} 13. a3 {[%clk 0:02:27.1]} 13... Bxc5 {[%clk 0:02:03.6]}
14. Na4 {[%clk 0:02:01]} 14... Bb6 {[%clk 0:01:40.8]} 15. Nxb6 {[%clk
0:01:57.1]} 15... axb6 {[%clk 0:01:40.1]} 16. Bd6 {[%clk 0:01:13.6]} 16... dxe3
{[%clk 0:01:39.3]} 17. Bxf8 {[%clk 0:01:10.9]} 17... exf2+ {[%clk 0:01:39.4]}
18. Kxf2 {[%clk 0:01:11.4]} 18... Qxf8 {[%clk 0:01:40.2]} 19. Rhe1 {[%clk
0:01:05.9]} 19... Rc8 {[%clk 0:01:34.8]} 20. Qb3 {[%clk 0:00:58.8]} 20... Qc5+
{[%clk 0:01:15.9]} 21. Qe3 {[%clk 0:00:58.5]} 21... Qb5 {[%clk 0:01:15.8]} 22.
Rd2 {[%clk 0:00:49.9]} 22... h6 {[%clk 0:01:15.6]} 23. Kg1 {[%clk 0:00:47.9]}
23... Re8 {[%clk 0:01:14.6]} 24. Qf2 {[%clk 0:00:46.4]} 24... Rxe1+ {[%clk
0:01:13.9]} 25. Qxe1 {[%clk 0:00:47.3]} 25... Qc5+ {[%clk 0:01:14.5]} 26. Qf2
{[%clk 0:00:46.2]} 26... Qc1+ {[%clk 0:01:14.2]} 27. Rd1 {[%clk 0:00:46.6]}
27... Qf4 {[%clk 0:01:05.3]} 28. Qxb6 {[%clk 0:00:44.1]} 28... Ne5 {[%clk
0:01:03.8]} 29. Qf2 {[%clk 0:00:34.9]} 29... Kh7 {[%clk 0:00:58.9]} 30. h3
{[%clk 0:00:29.5]} 30... g6 {[%clk 0:00:58]} 31. Bxb7 {[%clk 0:00:25.6]} 31...
Qa4 {[%clk 0:00:49.7]} 32. Re1 {[%clk 0:00:21.9]} 32... Nd3 {[%clk 0:00:43.4]}
33. Qxf6 {[%clk 0:00:20.6]} 33... Nxe1 {[%clk 0:00:43.8]} 34. Qxf7+ {[%clk
0:00:20.9]} 34... Kh8 {[%clk 0:00:44.3]} 35. Bd5 {[%clk 0:00:18.5]} 35... Qd4+
{[%clk 0:00:37.8]} 36. Kh1 {[%clk 0:00:18.6]} 36... Qg7 {[%clk 0:00:35.2]} 37.
Qxg7+ {[%clk 0:00:18.8]} 37... Kxg7 {[%clk 0:00:36.1]} 38. a4 {[%clk 0:00:18.2]}
38... Nd3 {[%clk 0:00:36.7]} 39. a5 {[%clk 0:00:17.6]} 39... Nb4 {[%clk
0:00:37.4]} 40. Bc4 {[%clk 0:00:17]} 40... Kf6 {[%clk 0:00:36.5]} 41. a6 {[%clk
0:00:17.4]} 41... Nc6 {[%clk 0:00:36.9]} 42. b4 {[%clk 0:00:17.1]} 42... Ke5
{[%clk 0:00:37.5]} 43. b5 {[%clk 0:00:17.6]} 1-0

[Event "Early-Titled-Tuesday-Blitz-October-10-2023"]
[Site "Chess.com"]
[Date "2023.10.10"]
[Round "3"]
[White "Tsyhanchuk_Stanislav"]
[Black "SashaKuzhilniy"]
[Result "1-0"]
[WhiteElo "2471"]
[BlackElo "2616"]
[TimeControl "180+1"]
[EndTime "8:27:43 PDT"]
[Termination "Tsyhanchuk_Stanislav won by resignation"]

1. e4 {[%clk 0:02:57.1]} 1... g6 {[%clk 0:03:00.3]} 2. c4 {[%clk 0:02:56.6]}
2... Bg7 {[%clk 0:02:59.5]} 3. d4 {[%clk 0:02:56.3]} 3... d6 {[%clk 0:02:59]} 4.
Nc3 {[%clk 0:02:56.1]} 4... c5 {[%clk 0:02:58.1]} 5. d5 {[%clk 0:02:55.3]} 5...
Bxc3+ {[%clk 0:02:57.6]} 6. bxc3 {[%clk 0:02:54.8]} 6... e5 {[%clk 0:02:58.5]}
7. g3 {[%clk 0:02:37.4]} 7... h6 {[%clk 0:02:37.1]} 8. Bg2 {[%clk 0:02:36.2]}
8... Ne7 {[%clk 0:02:33.2]} 9. f4 {[%clk 0:02:31.9]} 9... f6 {[%clk 0:02:32.6]}
10. Nf3 {[%clk 0:02:28]} 10... Nd7 {[%clk 0:02:29.4]} 11. Nh4 {[%clk 0:02:24.9]}
11... Nf8 {[%clk 0:02:25.9]} 12. fxe5 {[%clk 0:02:19.8]} 12... fxe5 {[%clk
0:02:25.2]} 13. O-O {[%clk 0:02:20.3]} 13... g5 {[%clk 0:01:24.6]} 14. Qh5+
{[%clk 0:02:18.2]} 14... Kd7 {[%clk 0:01:24.9]} 15. Bxg5 {[%clk 0:02:06.5]}
15... Qe8 {[%clk 0:01:01.3]} 16. Rf7 {[%clk 0:01:32]} 16... Rh7 {[%clk
0:00:54.5]} 17. Bh3+ {[%clk 0:00:46.7]} 17... Kc7 {[%clk 0:00:48.2]} 18. Rxh7
{[%clk 0:00:38.1]} 18... Qxh5 {[%clk 0:00:46]} 19. Bxe7 {[%clk 0:00:31.9]} 19...
Bxh3 {[%clk 0:00:33]} 20. Bxf8+ {[%clk 0:00:27.4]} 20... Kb6 {[%clk 0:00:25.7]}
21. Rb1+ {[%clk 0:00:27]} 21... Ka6 {[%clk 0:00:24.7]} 22. Rhxb7 {[%clk
0:00:19.9]} 22... Rxf8 {[%clk 0:00:19.9]} 23. R7b3 {[%clk 0:00:20.2]} 23... Rf1+
{[%clk 0:00:16.1]} 24. Rxf1 {[%clk 0:00:19.2]} 24... Bxf1 {[%clk 0:00:17]} 25.
Kxf1 {[%clk 0:00:19.6]} 25... Qd1+ {[%clk 0:00:17.3]} 26. Kg2 {[%clk 0:00:19.6]}
26... Qe2+ {[%clk 0:00:16.8]} 27. Kh3 {[%clk 0:00:19.4]} 27... Qxe4 {[%clk
0:00:17.1]} 28. Rb8 {[%clk 0:00:16.3]} 28... Qxc4 {[%clk 0:00:16.5]} 29. Rd8
{[%clk 0:00:15.1]} 29... Qxd5 {[%clk 0:00:16.5]} 30. Nf5 {[%clk 0:00:15.1]}
30... Qe6 {[%clk 0:00:14]} 31. Rxd6+ {[%clk 0:00:15.1]} 31... Qxd6 {[%clk
0:00:14.4]} 32. Nxd6 {[%clk 0:00:16]} 1-0

[Event "Early-Titled-Tuesday-Blitz-October-10-2023"]
[Site "Chess.com"]
[Date "2023.10.10"]
[Round "3"]
[White "ZeGood_ZeBad_ZeUgly"]
[Black "dosto07"]
[Result "0-1"]
[WhiteElo "2318"]
[BlackElo "2506"]
[TimeControl "180+1"]
[EndTime "8:27:43 PDT"]
[Termination "dosto07 won on time"]

1. Nf3 {[%clk 0:03:00.9]} 1... d5 {[%clk 0:03:00]} 2. g3 {[%clk 0:03:00.4]} 2...
Nf6 {[%clk 0:03:00.5]} 3. Bg2 {[%clk 0:03:00.6]} 3... c6 {[%clk 0:03:00.9]} 4.
d3 {[%clk 0:02:59.8]} 4... Bf5 {[%clk 0:03:01]} 5. O-O {[%clk 0:03:00.2]} 5...
Nbd7 {[%clk 0:03:00.9]} 6. Nbd2 {[%clk 0:03:00.9]} 6... e6 {[%clk 0:03:01.1]} 7.
Re1 {[%clk 0:03:01.4]} 7... h6 {[%clk 0:02:58.4]} 8. e4 {[%clk 0:02:58.9]} 8...
Bh7 {[%clk 0:02:58.3]} 9. e5 {[%clk 0:02:50.1]} 9... Ng8 {[%clk 0:02:57.8]} 10.
Nf1 {[%clk 0:02:43.6]} 10... Ne7 {[%clk 0:02:54.4]} 11. h4 {[%clk 0:02:40.3]}
11... Nf5 {[%clk 0:02:52.2]} 12. Ne3 {[%clk 0:02:35]} 12... Bc5 {[%clk
0:02:46.9]} 13. d4 {[%clk 0:02:32.9]} 13... Bb4 {[%clk 0:02:45.3]} 14. Bd2
{[%clk 0:02:28.1]} 14... Bxd2 {[%clk 0:02:44.2]} 15. Qxd2 {[%clk 0:02:29]} 15...
O-O {[%clk 0:02:42.6]} 16. Bh3 {[%clk 0:02:23]} 16... Nxe3 {[%clk 0:02:34.7]}
17. Rxe3 {[%clk 0:02:22.8]} 17... c5 {[%clk 0:02:35.1]} 18. c3 {[%clk
0:02:06.2]} 18... Rc8 {[%clk 0:02:33]} 19. Rc1 {[%clk 0:02:03.8]} 19... cxd4
{[%clk 0:02:29.4]} 20. cxd4 {[%clk 0:02:03.7]} 20... Rxc1+ {[%clk 0:02:24.7]}
21. Qxc1 {[%clk 0:02:04.6]} 21... Qa5 {[%clk 0:02:23.2]} 22. a3 {[%clk
0:01:53.6]} 22... Nb8 {[%clk 0:02:11]} 23. Rc3 {[%clk 0:01:48.8]} 23... Nc6
{[%clk 0:02:10.6]} 24. Rc5 {[%clk 0:01:32.9]} 24... Qb6 {[%clk 0:02:09.6]} 25.
b4 {[%clk 0:01:25.7]} 25... Be4 {[%clk 0:02:07.6]} 26. b5 {[%clk 0:01:04.4]}
26... Bxf3 {[%clk 0:01:58.9]} 27. bxc6 {[%clk 0:01:04.5]} 27... bxc6 {[%clk
0:01:59]} 28. Rxc6 {[%clk 0:01:05.2]} 28... Qxd4 {[%clk 0:01:59]} 29. Rc3 {[%clk
0:00:51.3]} 29... Be4 {[%clk 0:01:55.9]} 30. Re3 {[%clk 0:00:43.4]} 30... Rb8
{[%clk 0:01:52.4]} 31. Bf1 {[%clk 0:00:26]} 31... Rb1 {[%clk 0:01:46]} 32. Qc8+
{[%clk 0:00:17.2]} 32... Kh7 {[%clk 0:01:46.2]} 33. Qa6 {[%clk 0:00:16.6]} 33...
Qd1 {[%clk 0:01:35.3]} 34. f3 {[%clk 0:00:11.9]} 34... Bf5 {[%clk 0:01:32.8]}
35. g4 {[%clk 0:00:11]} 35... d4 {[%clk 0:01:25.4]} 36. gxf5 {[%clk 0:00:06.2]}
36... dxe3 {[%clk 0:01:25.1]} 37. Kg2 {[%clk 0:00:05.6]} 37... Qd2+ {[%clk
0:01:24.5]} 38. Be2 {[%clk 0:00:05.3]} 38... Re1 {[%clk 0:01:23]} 39. fxe6
{[%clk 0:00:05.4]} 39... Rxe2+ {[%clk 0:01:19.9]} 40. Kg3 {[%clk 0:00:05.1]}
40... Rg2+ {[%clk 0:01:19.2]} 41. Kf4 {[%clk 0:00:05.1]} 41... e2+ {[%clk
0:01:19.3]} 42. Ke4 {[%clk 0:00:03.6]} 42... e1=Q+ {[%clk 0:01:18.8]} 43. Kf5
{[%clk 0:00:04.1]} 43... Qc2+ {[%clk 0:01:14.9]} 44. Kf4 {[%clk 0:00:02.9]}
44... Qxh4+ {[%clk 0:01:10.2]} 45. Ke3 {[%clk 0:00:02.7]} 45... Qg5+ {[%clk
0:01:07]} 46. f4 {[%clk 0:00:02.6]} 46... Qg3+ {[%clk 0:01:06.2]} 47. Kd4 {[%clk
0:00:02.5]} 47... Qgf2+ {[%clk 0:01:04.3]} 48. Kd5 {[%clk 0:00:01.6]} 48...
Qfd2+ {[%clk 0:01:00.3]} 0-1